[Event "*** Titled Tuesday Blitz"]
[Site "Chess.com"]
[Date "2020.05.19"]
[Round "3"]
[White "stasiek18"]
[Black "D0wnpour"]
[Result "0-1"]
[WhiteElo "2374"]
[BlackElo "2572"]
[TimeControl "180+1"]
[EndTime "12:29:50 PDT"]
[Termination "D0wnpour won by resignation"]

1. d4 {[%clk 0:03:00.9]} 1... Nf6 {[%clk 0:02:59.6]} 2. Bg5 {[%clk 0:03:00.2]}
2... Ne4 {[%clk 0:02:57.4]} 3. h4 {[%clk 0:02:59.8]} 3... h6 {[%clk 0:02:57]} 4.
Bf4 {[%clk 0:02:59.4]} 4... e6 {[%clk 0:02:57.3]} 5. Nd2 {[%clk 0:02:58.5]} 5...
Bd6 {[%clk 0:02:55.4]} 6. Bxd6 {[%clk 0:02:49.6]} 6... Nxd6 {[%clk 0:02:56.3]}
7. e4 {[%clk 0:02:47.5]} 7... f5 {[%clk 0:02:56.7]} 8. Qh5+ {[%clk 0:02:45.1]}
8... Kf8 {[%clk 0:02:57.2]} 9. e5 {[%clk 0:02:39.5]} 9... Nf7 {[%clk 0:02:56.9]}
10. Ne2 {[%clk 0:02:27.5]} 10... Rg8 {[%clk 0:02:53.4]} 11. Nf4 {[%clk
0:02:16.8]} 11... Nh8 {[%clk 0:02:53.6]} 12. Bd3 {[%clk 0:02:04.6]} 12... Qe8
{[%clk 0:02:53.4]} 13. Qe2 {[%clk 0:02:00.1]} 13... b6 {[%clk 0:02:40.4]} 14.
O-O-O {[%clk 0:01:59.5]} 14... Bb7 {[%clk 0:02:40.7]} 15. Rhg1 {[%clk
0:01:59.1]} 15... Nc6 {[%clk 0:02:22.5]} 16. c3 {[%clk 0:01:48.8]} 16... Ne7
{[%clk 0:02:22.7]} 17. f3 {[%clk 0:01:35]} 17... Qf7 {[%clk 0:02:18.8]} 18. g4
{[%clk 0:01:31.9]} 18... fxg4 {[%clk 0:01:52.4]} 19. fxg4 {[%clk 0:01:30.3]}
19... Qxf4 {[%clk 0:01:35.5]} 20. Rdf1 {[%clk 0:01:30]} 20... Qxf1+ {[%clk
0:01:35.5]} 21. Rxf1+ {[%clk 0:01:30.3]} 21... Ke8 {[%clk 0:01:28.2]} 22. g5
{[%clk 0:01:28.1]} 22... hxg5 {[%clk 0:01:23.5]} 23. hxg5 {[%clk 0:01:09.8]}
23... c5 {[%clk 0:01:17.3]} 24. Nc4 {[%clk 0:01:00.6]} 24... Bd5 {[%clk
0:01:17.5]} 25. Nd6+ {[%clk 0:01:00.3]} 25... Kd8 {[%clk 0:01:17.7]} 26. Bh7
{[%clk 0:00:55]} 26... Kc7 {[%clk 0:01:15.2]} 27. Qa6 {[%clk 0:00:48.2]} 27...
Rgd8 {[%clk 0:01:08.6]} 28. c4 {[%clk 0:00:46.7]} 28... Bc6 {[%clk 0:01:06]} 29.
dxc5 {[%clk 0:00:45.7]} 29... Nhg6 {[%clk 0:01:02]} 30. Bxg6 {[%clk 0:00:29]}
30... Nxg6 {[%clk 0:01:02.9]} 31. b4 {[%clk 0:00:28.6]} 31... Nxe5 {[%clk
0:00:46.9]} 32. b5 {[%clk 0:00:28.8]} 32... Bg2 {[%clk 0:00:47.4]} 33. Rg1
{[%clk 0:00:12.8]} 33... Nd3+ {[%clk 0:00:45.8]} 34. Kd2 {[%clk 0:00:12.4]}
34... Nxc5 {[%clk 0:00:46.7]} 35. Qa3 {[%clk 0:00:10.4]} 35... Kxd6 {[%clk
0:00:31.5]} 36. Qg3+ {[%clk 0:00:10.2]} 36... Ke7 {[%clk 0:00:31.7]} 37. Qe5
{[%clk 0:00:07.4]} 37... Bh3 {[%clk 0:00:19.8]} 38. Qxg7+ {[%clk 0:00:06.3]}
38... Kd6 {[%clk 0:00:20.5]} 39. Qd4+ {[%clk 0:00:04.8]} 39... Kc7 {[%clk
0:00:21.2]} 40. g6 {[%clk 0:00:05.1]} 40... Bf5 {[%clk 0:00:20.2]} 41. g7 {[%clk
0:00:04.7]} 41... Rg8 {[%clk 0:00:20.8]} 42. a4 {[%clk 0:00:02.1]} 42... a5
{[%clk 0:00:19.1]} 43. Qe5+ {[%clk 0:00:02.1]} 43... d6 {[%clk 0:00:18.4]} 44.
Qf6 {[%clk 0:00:03]} 44... Rad8 {[%clk 0:00:16.9]} 45. Qf7+ {[%clk 0:00:03.1]}
45... Kb8 {[%clk 0:00:17.1]} 46. Kc3 {[%clk 0:00:03.3]} 46... Ne4+ {[%clk
0:00:14.1]} 47. Kd4 {[%clk 0:00:03.4]} 47... Nc5 {[%clk 0:00:15]} 48. Ke3 {[%clk
0:00:03.4]} 48... Be4 {[%clk 0:00:12.1]} 49. Rh1 {[%clk 0:00:03.7]} 49... d5
{[%clk 0:00:11.2]} 50. Rh8 {[%clk 0:00:03.5]} 50... Rxh8 {[%clk 0:00:11.1]} 51.
gxh8=Q {[%clk 0:00:03.2]} 51... Rxh8 {[%clk 0:00:12]} 52. Qf6 {[%clk 0:00:03.4]}
52... Rc8 {[%clk 0:00:10]} 53. cxd5 {[%clk 0:00:03.2]} 53... Bxd5 {[%clk
0:00:08.5]} 54. Kd4 {[%clk 0:00:03.5]} 54... Kb7 {[%clk 0:00:08]} 55. Ke5 {[%clk
0:00:03.8]} 55... Rc7 {[%clk 0:00:07.6]} 56. Kd6 {[%clk 0:00:04]} 56... Rd7+
{[%clk 0:00:07.4]} 57. Ke5 {[%clk 0:00:03.6]} 57... Nxa4 {[%clk 0:00:07.8]} 58.
Qf8 {[%clk 0:00:03.4]} 58... Nc5 {[%clk 0:00:07.1]} 59. Kf6 {[%clk 0:00:03.1]}
59... a4 {[%clk 0:00:07.4]} 60. Ke5 {[%clk 0:00:03.3]} 60... a3 {[%clk
0:00:07.7]} 0-1

[Event "*** Titled Tuesday Blitz"]
[Site "Chess.com"]
[Date "2020.05.19"]
[Round "3"]
[White "bazar-wokzal"]
[Black "djamir"]
[Result "1-0"]
[WhiteElo "2519"]
[BlackElo "2722"]
[TimeControl "180+1"]
[EndTime "12:29:51 PDT"]
[Termination "bazar-wokzal won by checkmate"]

1. e4 {[%clk 0:03:00.9]} 1... Nf6 {[%clk 0:02:57.5]} 2. Nc3 {[%clk 0:03:00.3]}
2... d5 {[%clk 0:02:51.8]} 3. e5 {[%clk 0:03:00.2]} 3... Ne4 {[%clk 0:02:51.7]}
4. Nce2 {[%clk 0:03:00.2]} 4... Nc5 {[%clk 0:02:51.7]} 5. d4 {[%clk 0:02:59.1]}
5... Ne6 {[%clk 0:02:52.2]} 6. f4 {[%clk 0:02:59.2]} 6... g6 {[%clk 0:02:53.1]}
7. Nf3 {[%clk 0:02:59]} 7... c5 {[%clk 0:02:53.5]} 8. c3 {[%clk 0:02:57.5]} 8...
cxd4 {[%clk 0:02:53.3]} 9. Nexd4 {[%clk 0:02:55.2]} 9... Nxd4 {[%clk 0:02:53.5]}
10. Nxd4 {[%clk 0:02:54.3]} 10... e6 {[%clk 0:02:53.9]} 11. Be3 {[%clk
0:02:52.5]} 11... Nc6 {[%clk 0:02:54.1]} 12. Be2 {[%clk 0:02:49.8]} 12... Nxd4
{[%clk 0:02:35.1]} 13. Qxd4 {[%clk 0:02:45.9]} 13... Bd7 {[%clk 0:02:29.6]} 14.
O-O {[%clk 0:02:43.8]} 14... h5 {[%clk 0:02:17.3]} 15. c4 {[%clk 0:02:40.1]}
15... Bc6 {[%clk 0:02:16]} 16. cxd5 {[%clk 0:02:36.8]} 16... Qxd5 {[%clk
0:02:16.6]} 17. Bf3 {[%clk 0:02:34.6]} 17... Qxd4 {[%clk 0:02:00.4]} 18. Bxc6+
{[%clk 0:02:33.8]} 18... bxc6 {[%clk 0:02:01.3]} 19. Bxd4 {[%clk 0:02:33.1]}
19... a6 {[%clk 0:01:48.3]} 20. Rac1 {[%clk 0:02:32.5]} 20... Rc8 {[%clk
0:01:48.4]} 21. Rc4 {[%clk 0:02:32]} 21... Be7 {[%clk 0:01:43]} 22. Rfc1 {[%clk
0:02:28.8]} 22... Kd7 {[%clk 0:01:43.3]} 23. Bb6 {[%clk 0:02:21.9]} 23... Rb8
{[%clk 0:01:32.3]} 24. Rd4+ {[%clk 0:02:04]} 24... Kc8 {[%clk 0:00:47.6]} 25.
Rxc6+ {[%clk 0:02:01.7]} 25... Kb7 {[%clk 0:00:48.1]} 26. Rc7+ {[%clk
0:01:57.7]} 26... Kxb6 {[%clk 0:00:49]} 27. Rxe7 {[%clk 0:01:57.5]} 27... Kc5
{[%clk 0:00:49.4]} 28. Rd2 {[%clk 0:01:52.3]} 28... Rhf8 {[%clk 0:00:48.3]} 29.
Rc7+ {[%clk 0:01:47.3]} 29... Kb6 {[%clk 0:00:46.8]} 30. Rdd7 {[%clk 0:01:47]}
30... Rfc8 {[%clk 0:00:44]} 31. Rxc8 {[%clk 0:01:39.6]} 31... Rxc8 {[%clk
0:00:44.9]} 32. Rxf7 {[%clk 0:01:37.1]} 32... Rc1+ {[%clk 0:00:39.1]} 33. Kf2
{[%clk 0:01:37.1]} 33... Rc2+ {[%clk 0:00:40]} 34. Kf3 {[%clk 0:01:36.9]} 34...
Rxb2 {[%clk 0:00:40.9]} 35. Rf6 {[%clk 0:01:36.4]} 35... Kc5 {[%clk 0:00:35.1]}
36. Rxe6 {[%clk 0:01:33.8]} 36... Rxa2 {[%clk 0:00:35.7]} 37. Rxg6 {[%clk
0:01:33.3]} 37... Kd5 {[%clk 0:00:36.2]} 38. Rd6+ {[%clk 0:01:32.1]} 38... Kc5
{[%clk 0:00:36.1]} 39. Rd8 {[%clk 0:01:27.1]} 39... a5 {[%clk 0:00:36.2]} 40. e6
{[%clk 0:01:24.6]} 40... Ra3+ {[%clk 0:00:34.7]} 41. Ke4 {[%clk 0:01:22.7]}
41... Ra1 {[%clk 0:00:34.8]} 42. Rd5+ {[%clk 0:01:13.7]} 42... Kc6 {[%clk
0:00:31.6]} 43. Rxh5 {[%clk 0:01:11.3]} 43... Kd6 {[%clk 0:00:30.5]} 44. Kf5
{[%clk 0:01:01.6]} 44... Re1 {[%clk 0:00:23.5]} 45. Rh8 {[%clk 0:00:55.6]} 45...
Rxe6 {[%clk 0:00:20.2]} 46. Ra8 {[%clk 0:00:50.4]} 46... Re2 {[%clk 0:00:20.2]}
47. g4 {[%clk 0:00:41.3]} 47... Ra2 {[%clk 0:00:19.6]} 48. g5 {[%clk 0:00:41]}
48... Ke7 {[%clk 0:00:17.5]} 49. g6 {[%clk 0:00:34.2]} 49... Rxh2 {[%clk
0:00:17.5]} 50. Ra7+ {[%clk 0:00:31.6]} 50... Kf8 {[%clk 0:00:17.3]} 51. Kf6
{[%clk 0:00:30.5]} 51... Ke8 {[%clk 0:00:17]} 52. Rxa5 {[%clk 0:00:26.4]} 52...
Rb2 {[%clk 0:00:16.2]} 53. Ra8+ {[%clk 0:00:24.8]} 53... Kd7 {[%clk 0:00:16.5]}
54. g7 {[%clk 0:00:24.8]} 54... Rb6+ {[%clk 0:00:17.4]} 55. Kf7 {[%clk
0:00:24.6]} 55... Rb4 {[%clk 0:00:17.3]} 56. f5 {[%clk 0:00:23.4]} 56... Rb7
{[%clk 0:00:15.5]} 57. g8=Q {[%clk 0:00:21.3]} 57... Kd6+ {[%clk 0:00:15.9]} 58.
Kg6 {[%clk 0:00:21.2]} 58... Ke5 {[%clk 0:00:13.1]} 59. Qe6+ {[%clk 0:00:20.2]}
59... Kf4 {[%clk 0:00:10.7]} 60. Ra4+ {[%clk 0:00:19.6]} 60... Kg3 {[%clk
0:00:09.9]} 61. Qe3+ {[%clk 0:00:19.2]} 61... Kg2 {[%clk 0:00:10.4]} 62. Ra2+
{[%clk 0:00:18.8]} 62... Kf1 {[%clk 0:00:11]} 63. Qc1# {[%clk 0:00:18.4]} 1-0

[Event "*** Titled Tuesday Blitz"]
[Site "Chess.com"]
[Date "2020.05.19"]
[Round "3"]
[White "GMartin_Petrov"]
[Black "Chichin_chao"]
[Result "1-0"]
[WhiteElo "2610"]
[BlackElo "2399"]
[TimeControl "180+1"]
[EndTime "12:29:51 PDT"]
[Termination "GMartin_Petrov won by resignation"]

1. c4 {[%clk 0:03:00.9]} 1... e5 {[%clk 0:02:56.1]} 2. g3 {[%clk 0:02:53]} 2...
d6 {[%clk 0:02:53.4]} 3. Bg2 {[%clk 0:02:53]} 3... Nd7 {[%clk 0:02:53.7]} 4. Nc3
{[%clk 0:02:51.6]} 4... Ngf6 {[%clk 0:02:54]} 5. e3 {[%clk 0:02:51.1]} 5... Be7
{[%clk 0:02:54]} 6. Nge2 {[%clk 0:02:50.1]} 6... O-O {[%clk 0:02:54.1]} 7. O-O
{[%clk 0:02:48.7]} 7... c6 {[%clk 0:02:51.1]} 8. d4 {[%clk 0:02:48]} 8... Re8
{[%clk 0:02:47.6]} 9. b4 {[%clk 0:02:44.5]} 9... Bf8 {[%clk 0:02:44.9]} 10. b5
{[%clk 0:02:39.5]} 10... exd4 {[%clk 0:02:38.4]} 11. exd4 {[%clk 0:02:33.2]}
11... c5 {[%clk 0:02:33]} 12. Bf4 {[%clk 0:02:27]} 12... Nb6 {[%clk 0:02:25.9]}
13. Qd3 {[%clk 0:02:12]} 13... Nh5 {[%clk 0:01:18.3]} 14. Be3 {[%clk 0:02:01.1]}
14... Be6 {[%clk 0:01:12.6]} 15. Bxb7 {[%clk 0:01:30.8]} 15... Bxc4 {[%clk
0:01:11.1]} 16. Qf5 {[%clk 0:01:29.1]} 16... g6 {[%clk 0:01:11.2]} 17. Qf3
{[%clk 0:01:26.3]} 17... Rb8 {[%clk 0:01:10.3]} 18. dxc5 {[%clk 0:01:22.8]}
18... dxc5 {[%clk 0:01:10.3]} 19. Rfd1 {[%clk 0:01:21.1]} 19... Qf6 {[%clk
0:01:10.6]} 20. Qxf6 {[%clk 0:01:10.9]} 20... Nxf6 {[%clk 0:01:11.5]} 21. Bc6
{[%clk 0:01:10.8]} 21... Re6 {[%clk 0:01:01.6]} 22. Nf4 {[%clk 0:01:08.8]} 22...
Rd6 {[%clk 0:01:01.7]} 23. a4 {[%clk 0:01:01.5]} 23... Rbd8 {[%clk 0:01:00.5]}
24. a5 {[%clk 0:00:52.6]} 24... Rxd1+ {[%clk 0:00:56.7]} 25. Rxd1 {[%clk
0:00:53.5]} 25... Rxd1+ {[%clk 0:00:56.7]} 26. Nxd1 {[%clk 0:00:54.3]} 26...
Nbd5 {[%clk 0:00:56.4]} 27. b6 {[%clk 0:00:50.5]} 27... axb6 {[%clk 0:00:53.9]}
28. a6 {[%clk 0:00:41.3]} 28... Bxa6 {[%clk 0:00:30.7]} 29. Nxd5 {[%clk
0:00:40.4]} 29... Nxd5 {[%clk 0:00:29.9]} 30. Bxd5 {[%clk 0:00:41.3]} 30... Bd6
{[%clk 0:00:27.6]} 31. Nc3 {[%clk 0:00:39.8]} 31... Kg7 {[%clk 0:00:25.7]} 32.
Bc6 {[%clk 0:00:38.7]} 32... Be5 {[%clk 0:00:24.6]} 33. Bb5 {[%clk 0:00:36.1]}
33... Bb7 {[%clk 0:00:23.6]} 34. Na4 {[%clk 0:00:36.1]} 34... Bc7 {[%clk
0:00:23]} 35. Bf4 {[%clk 0:00:36.2]} 35... Bd8 {[%clk 0:00:22.6]} 36. Be5+
{[%clk 0:00:34.4]} 36... Kf8 {[%clk 0:00:21.9]} 37. Bd6+ {[%clk 0:00:34.2]}
37... Kg7 {[%clk 0:00:21.7]} 38. Bb8 {[%clk 0:00:33.3]} 38... Be4 {[%clk
0:00:20.2]} 39. Ba7 {[%clk 0:00:32.3]} 39... Kf6 {[%clk 0:00:18.5]} 40. Bxb6
{[%clk 0:00:31.7]} 40... Bxb6 {[%clk 0:00:17.7]} 41. Nxb6 {[%clk 0:00:32.6]}
41... Ke5 {[%clk 0:00:16.8]} 42. Kf1 {[%clk 0:00:29.5]} 42... Kd4 {[%clk
0:00:15.2]} 43. Ke1 {[%clk 0:00:28.7]} 43... Bb7 {[%clk 0:00:12.1]} 44. Kd2
{[%clk 0:00:25.7]} 44... f6 {[%clk 0:00:12.2]} 45. Bc4 {[%clk 0:00:22.9]} 45...
h6 {[%clk 0:00:11.3]} 46. Bf7 {[%clk 0:00:22.6]} 46... g5 {[%clk 0:00:11.3]} 47.
Nc4 {[%clk 0:00:21.5]} 47... f5 {[%clk 0:00:08.8]} 48. Ne3 {[%clk 0:00:19.8]}
48... Ke5 {[%clk 0:00:07]} 49. Kd3 {[%clk 0:00:16.8]} 49... h5 {[%clk
0:00:06.1]} 50. Bxh5 {[%clk 0:00:15.8]} 50... Ba6+ {[%clk 0:00:06.3]} 51. Nc4+
{[%clk 0:00:15.2]} 51... Bxc4+ {[%clk 0:00:06.4]} 52. Kxc4 {[%clk 0:00:14.1]}
52... f4 {[%clk 0:00:06.9]} 53. Bf3 {[%clk 0:00:12.1]} 53... fxg3 {[%clk
0:00:05.9]} 54. fxg3 {[%clk 0:00:11.4]} 54... Kd6 {[%clk 0:00:06.1]} 55. Bg2
{[%clk 0:00:10.2]} 55... g4 {[%clk 0:00:06.2]} 56. Bb7 {[%clk 0:00:08.2]} 56...
Kc7 {[%clk 0:00:05.2]} 57. Be4 {[%clk 0:00:07.9]} 57... Kd6 {[%clk 0:00:05.8]}
58. Bf5 {[%clk 0:00:08.4]} 58... Ke5 {[%clk 0:00:06]} 59. Bxg4 {[%clk
0:00:09.3]} 1-0

[Event "*** Titled Tuesday Blitz"]
[Site "Chess.com"]
[Date "2020.05.19"]
[Round "3"]
[White "LogoCzar"]
[Black "Funo09"]
[Result "0-1"]
[WhiteElo "2453"]
[BlackElo "2720"]
[TimeControl "180+1"]
[EndTime "12:29:53 PDT"]
[Termination "Funo09 won by checkmate"]

1. e4 {[%clk 0:03:00.9]} 1... c5 {[%clk 0:02:59.2]} 2. Nf3 {[%clk 0:03:00.9]}
2... Nf6 {[%clk 0:02:58.6]} 3. e5 {[%clk 0:03:00.2]} 3... Nd5 {[%clk 0:02:57.7]}
4. Nc3 {[%clk 0:03:00.5]} 4... e6 {[%clk 0:02:58.3]} 5. Nxd5 {[%clk 0:02:59.9]}
5... exd5 {[%clk 0:02:59.2]} 6. d4 {[%clk 0:03:00.6]} 6... Nc6 {[%clk
0:02:59.9]} 7. dxc5 {[%clk 0:02:57.3]} 7... Bxc5 {[%clk 0:03:00.8]} 8. Bd3
{[%clk 0:02:57.5]} 8... d6 {[%clk 0:03:00.1]} 9. exd6 {[%clk 0:02:56.2]} 9...
O-O {[%clk 0:03:00.6]} 10. O-O {[%clk 0:02:54.2]} 10... Qxd6 {[%clk 0:03:00.9]}
11. a3 {[%clk 0:02:39.2]} 11... Bg4 {[%clk 0:02:54.1]} 12. Bxh7+ {[%clk
0:02:33.9]} 12... Kh8 {[%clk 0:02:46.3]} 13. Bd3 {[%clk 0:02:31.7]} 13... Rfe8
{[%clk 0:02:30.6]} 14. b4 {[%clk 0:02:27.2]} 14... Bb6 {[%clk 0:02:24.9]} 15.
Bb2 {[%clk 0:02:25.5]} 15... Bc7 {[%clk 0:02:18.6]} 16. g3 {[%clk 0:02:18.1]}
16... Bb6 {[%clk 0:02:15.2]} 17. Kg2 {[%clk 0:02:09.1]} 17... Qd7 {[%clk
0:02:09]} 18. Qd2 {[%clk 0:02:00]} 18... Bh3+ {[%clk 0:01:50]} 19. Kh1 {[%clk
0:01:48.5]} 19... Qg4 {[%clk 0:01:49]} 20. Qh6+ {[%clk 0:01:25.2]} 20... Kg8
{[%clk 0:01:43.2]} 21. Qh7+ {[%clk 0:01:21.3]} 21... Kf8 {[%clk 0:01:43.1]} 22.
Ng5 {[%clk 0:01:03.5]} 22... Qxg5 {[%clk 0:01:18]} 23. Qxh3 {[%clk 0:00:57.9]}
23... d4 {[%clk 0:01:18.4]} 24. Rae1 {[%clk 0:00:51.2]} 24... Qh6 {[%clk
0:01:15.8]} 25. Qxh6 {[%clk 0:00:42.7]} 25... gxh6 {[%clk 0:01:16.7]} 26. f4
{[%clk 0:00:42.3]} 26... a5 {[%clk 0:01:12.1]} 27. b5 {[%clk 0:00:39.5]} 27...
Ne7 {[%clk 0:01:11.4]} 28. Kg2 {[%clk 0:00:29.4]} 28... Nd5 {[%clk 0:01:10.9]}
29. Bc1 {[%clk 0:00:22.3]} 29... Rac8 {[%clk 0:01:06.4]} 30. Be4 {[%clk
0:00:20.4]} 30... Ne3+ {[%clk 0:01:03.8]} 31. Bxe3 {[%clk 0:00:20.1]} 31... Rxe4
{[%clk 0:01:03.3]} 32. Bd2 {[%clk 0:00:18.3]} 32... Rxe1 {[%clk 0:01:02.4]} 33.
Bxe1 {[%clk 0:00:18]} 33... Rxc2+ {[%clk 0:01:03.3]} 34. Rf2 {[%clk 0:00:18.3]}
34... Rc1 {[%clk 0:00:44.4]} 35. Bd2 {[%clk 0:00:17.8]} 35... Rb1 {[%clk
0:00:44.5]} 36. Rf3 {[%clk 0:00:17.3]} 36... Rxb5 {[%clk 0:00:43.6]} 37. Rd3
{[%clk 0:00:17.3]} 37... Ke7 {[%clk 0:00:42.6]} 38. Kf3 {[%clk 0:00:17.2]} 38...
Ke6 {[%clk 0:00:43.1]} 39. Ke4 {[%clk 0:00:17.1]} 39... f5+ {[%clk 0:00:43.1]}
40. Kf3 {[%clk 0:00:17.5]} 40... Kd5 {[%clk 0:00:43.5]} 41. g4 {[%clk
0:00:16.3]} 41... Kc4 {[%clk 0:00:42.9]} 42. Ke2 {[%clk 0:00:14]} 42... fxg4
{[%clk 0:00:43.1]} 43. Rg3 {[%clk 0:00:14]} 43... h5 {[%clk 0:00:42.9]} 44. h3
{[%clk 0:00:14]} 44... gxh3 {[%clk 0:00:36.9]} 45. Rxh3 {[%clk 0:00:14.9]} 45...
a4 {[%clk 0:00:36.6]} 46. Rg3 {[%clk 0:00:13.7]} 46... Rf5 {[%clk 0:00:34.4]}
47. Rg5 {[%clk 0:00:13.5]} 47... d3+ {[%clk 0:00:32.8]} 48. Kd1 {[%clk
0:00:13.1]} 48... Rxg5 {[%clk 0:00:31.5]} 49. fxg5 {[%clk 0:00:14]} 49... Bd4
{[%clk 0:00:32]} 50. g6 {[%clk 0:00:13.3]} 50... h4 {[%clk 0:00:31.3]} 51. Ke1
{[%clk 0:00:12.4]} 51... Bg7 {[%clk 0:00:26.2]} 52. Kf2 {[%clk 0:00:12.2]} 52...
Kb3 {[%clk 0:00:25.6]} 53. Ke3 {[%clk 0:00:08.1]} 53... Kc2 {[%clk 0:00:22.8]}
54. Bb4 {[%clk 0:00:08.3]} 54... h3 {[%clk 0:00:21.8]} 55. Kf3 {[%clk
0:00:08.4]} 55... d2 {[%clk 0:00:20.6]} 56. Bxd2 {[%clk 0:00:08.7]} 56... Kxd2
{[%clk 0:00:21.5]} 57. Kg3 {[%clk 0:00:09]} 57... Kc3 {[%clk 0:00:22]} 58. Kxh3
{[%clk 0:00:09.6]} 58... Kb3 {[%clk 0:00:22.5]} 59. Kg4 {[%clk 0:00:10.2]} 59...
Kxa3 {[%clk 0:00:23]} 60. Kf5 {[%clk 0:00:11]} 60... b5 {[%clk 0:00:23.4]} 61.
Ke6 {[%clk 0:00:11.7]} 61... b4 {[%clk 0:00:23.9]} 62. Kf7 {[%clk 0:00:12.3]}
62... Bc3 {[%clk 0:00:24.2]} 63. g7 {[%clk 0:00:12.9]} 63... Bxg7 {[%clk
0:00:23.8]} 64. Kxg7 {[%clk 0:00:13.8]} 64... b3 {[%clk 0:00:24.7]} 65. Kf6
{[%clk 0:00:13.2]} 65... b2 {[%clk 0:00:25.6]} 66. Ke6 {[%clk 0:00:14]} 66...
b1=Q {[%clk 0:00:26.5]} 67. Kd5 {[%clk 0:00:14.7]} 67... Qb4 {[%clk 0:00:26.5]}
68. Kc6 {[%clk 0:00:14.9]} 68... Kb3 {[%clk 0:00:27.4]} 69. Kc7 {[%clk 0:00:15]}
69... a3 {[%clk 0:00:28.3]} 70. Kc8 {[%clk 0:00:15.4]} 70... a2 {[%clk
0:00:29.2]} 71. Kc7 {[%clk 0:00:16.3]} 71... a1=Q {[%clk 0:00:30.1]} 72. Kc6
{[%clk 0:00:17.2]} 72... Qaa5 {[%clk 0:00:29.5]} 73. Kd7 {[%clk 0:00:17.3]}
73... Qbb6 {[%clk 0:00:29.7]} 74. Ke8 {[%clk 0:00:18.2]} 74... Qc7 {[%clk
0:00:29]} 75. Kf8 {[%clk 0:00:18.2]} 75... Qa8# {[%clk 0:00:29.9]} 0-1

[Event "*** Titled Tuesday Blitz"]
[Site "Chess.com"]
[Date "2020.05.19"]
[Round "3"]
[White "Zarikovs1999"]
[Black "Mr_Sinigami"]
[Result "1/2-1/2"]
[WhiteElo "2407"]
[BlackElo "2589"]
[TimeControl "180+1"]
[EndTime "12:29:53 PDT"]
[Termination "Game drawn by repetition"]

1. Nf3 {[%clk 0:02:53.8]} 1... Nf6 {[%clk 0:02:59.7]} 2. c4 {[%clk 0:02:54.3]}
2... e6 {[%clk 0:02:59.5]} 3. g3 {[%clk 0:02:54.2]} 3... d5 {[%clk 0:02:59.1]}
4. Bg2 {[%clk 0:02:55.1]} 4... d4 {[%clk 0:02:58.8]} 5. d3 {[%clk 0:02:55]} 5...
c5 {[%clk 0:02:59.2]} 6. b4 {[%clk 0:02:53.4]} 6... cxb4 {[%clk 0:02:58.6]} 7.
a3 {[%clk 0:02:53.4]} 7... bxa3 {[%clk 0:02:58.8]} 8. O-O {[%clk 0:02:48.7]}
8... Nc6 {[%clk 0:02:57]} 9. Qa4 {[%clk 0:02:48.2]} 9... Bd6 {[%clk 0:02:51.8]}
10. Nxd4 {[%clk 0:02:45.2]} 10... O-O {[%clk 0:02:52]} 11. Nxc6 {[%clk 0:02:42]}
11... bxc6 {[%clk 0:02:51.9]} 12. Bxc6 {[%clk 0:02:42.9]} 12... Rb8 {[%clk
0:02:52]} 13. Bxa3 {[%clk 0:02:42.2]} 13... Bxa3 {[%clk 0:02:44.7]} 14. Qxa3
{[%clk 0:02:31.2]} 14... e5 {[%clk 0:02:10]} 15. Bg2 {[%clk 0:02:17.9]} 15...
Bg4 {[%clk 0:02:07.6]} 16. Nc3 {[%clk 0:02:13.5]} 16... h5 {[%clk 0:02:00.1]}
17. h3 {[%clk 0:02:05.7]} 17... Be6 {[%clk 0:01:58.5]} 18. Qxa7 {[%clk
0:02:04.1]} 18... h4 {[%clk 0:01:56.2]} 19. g4 {[%clk 0:02:04.5]} 19... Rb3
{[%clk 0:01:53.4]} 20. Ne4 {[%clk 0:02:03.1]} 20... Nxe4 {[%clk 0:01:50.2]} 21.
Bxe4 {[%clk 0:01:36.3]} 21... f5 {[%clk 0:01:45.5]} 22. Bxf5 {[%clk 0:01:20.9]}
22... Bxf5 {[%clk 0:01:40.6]} 23. gxf5 {[%clk 0:01:21.8]} 23... Qg5+ {[%clk
0:01:41]} 24. Kh1 {[%clk 0:01:20]} 24... Qxf5 {[%clk 0:01:40.9]} 25. Qe3 {[%clk
0:01:16.8]} 25... e4 {[%clk 0:01:30.8]} 26. Qxe4 {[%clk 0:00:38.1]} 26... Qxh3+
{[%clk 0:01:27.8]} 27. Kg1 {[%clk 0:00:38.5]} 27... Rb6 {[%clk 0:01:08.5]} 28.
Ra5 {[%clk 0:00:19.6]} 28... Re6 {[%clk 0:00:33.9]} 29. Qg2 {[%clk 0:00:15.5]}
29... Qxg2+ {[%clk 0:00:33.3]} 30. Kxg2 {[%clk 0:00:16.4]} 30... Rxe2 {[%clk
0:00:34.2]} 31. c5 {[%clk 0:00:15]} 31... Rd2 {[%clk 0:00:32.2]} 32. Ra4 {[%clk
0:00:12.2]} 32... g5 {[%clk 0:00:27.7]} 33. Rg4 {[%clk 0:00:07.5]} 33... Rf5
{[%clk 0:00:26]} 34. d4 {[%clk 0:00:07.2]} 34... Kf7 {[%clk 0:00:26]} 35. Re4
{[%clk 0:00:04.8]} 35... Rf6 {[%clk 0:00:20.5]} 36. Re5 {[%clk 0:00:03.5]} 36...
Kg6 {[%clk 0:00:20.2]} 37. d5 {[%clk 0:00:02.6]} 37... g4 {[%clk 0:00:20.3]} 38.
d6 {[%clk 0:00:02.7]} 38... Rf3 {[%clk 0:00:15.2]} 39. Re4 {[%clk 0:00:02.5]}
39... Kf5 {[%clk 0:00:14.4]} 40. Re8 {[%clk 0:00:01.8]} 40... Rg3+ {[%clk
0:00:14.3]} 41. Kh1 {[%clk 0:00:01.8]} 41... Rh3+ {[%clk 0:00:14.9]} 42. Kg2
{[%clk 0:00:02.4]} 42... Rg3+ {[%clk 0:00:15]} 43. Kh1 {[%clk 0:00:03]} 43...
Rc3 {[%clk 0:00:15.2]} 44. Rf8+ {[%clk 0:00:02.8]} 44... Kg6 {[%clk 0:00:13.9]}
45. Rg8+ {[%clk 0:00:03.1]} 45... Kh5 {[%clk 0:00:13.3]} 46. Rh8+ {[%clk
0:00:03.5]} 46... Kg5 {[%clk 0:00:13.6]} 47. Rg8+ {[%clk 0:00:04.1]} 47... Kf4
{[%clk 0:00:13.5]} 48. Rf8+ {[%clk 0:00:04.2]} 48... Kg5 {[%clk 0:00:08.2]} 49.
Rg8+ {[%clk 0:00:04]} 49... Kf5 {[%clk 0:00:08.6]} 50. Rf8+ {[%clk 0:00:04.4]}
50... Kg5 {[%clk 0:00:04.8]} 51. Rg8+ {[%clk 0:00:04.7]} 1/2-1/2